bitfinex-derivatives/quotes_BTCF0:USTF0_20260315
["timestamp","ask_amount","ask_price","bid_price","bid_amount"]
[1773615278877,0.45174853,72759.0,72732.0,0.47596875]
[1773615279077,0.00144,72761.0,72736.0,0.47596875]
[1773615279383,0.45174853,72760.0,72732.0,0.47596875]
[1773615279581,0.00144,72759.0,72734.0,0.51720775]
[1773615279774,0.00144,72758.0,72734.0,0.47596875]
[1773615279969,0.45174853,72756.0,72731.0,0.00068746]
[1773615280276,0.041231,72750.0,72731.0,0.00068746]
[1773615280472,4.876e-05,72749.0,72731.0,0.00068746]
[1773615280873,0.041232,72748.0,72731.0,0.00068746]
[1773615281077,0.041237,72739.0,72717.0,0.47612687]
[1773615281276,4.876e-05,72738.0,72717.0,0.51737587]
[1773615281481,1.5,72737.0,72721.0,0.041247]
[1773615281869,1.5,72737.0,72719.0,0.47596875]
[1773615281870,0.76,72737.0,72719.0,0.47596875]
[1773615282073,0.45174853,72759.0,72727.0,0.47596875]
[1773615282074,0.041232,72748.0,72727.0,0.47596875]
[1773615282373,0.00144,72751.0,72728.0,0.00144]
[1773615282374,0.041233,72746.0,72728.0,0.00144]
[1773615282574,0.45318853,72751.0,72729.0,0.00144]
[1773615282787,0.45174853,72746.0,72726.0,0.00144]
[1773615282975,0.041234,72744.0,72726.0,0.00144]
[1773615283176,0.041237,72739.0,72726.0,0.00144]
[1773615283483,0.00144,72744.0,72726.0,0.00144]
[1773615283683,0.042672,72747.0,72726.0,0.00144]
[1773615283879,0.041233,72746.0,72726.0,0.00144]
[1773615284381,0.45174853,72745.0,72719.0,0.00144]
[1773615284569,0.00144,72747.0,72720.0,0.00144]
[1773615284570,0.45174853,72746.0,72720.0,0.00144]
[1773615284775,0.041237,72738.0,72720.0,0.00144]
[1773615284970,0.45318853,72747.0,72720.0,0.00144]
[1773615285175,0.45318853,72747.0,72720.0,0.47740875]
[1773615285385,0.041235,72743.0,72720.0,0.042687]
[1773615285683,0.041237,72740.0,72720.0,0.47740875]
[1773615285987,0.041236,72741.0,72720.0,0.51865575]
[1773615286179,0.45318853,72746.0,72720.0,0.47740875]
[1773615286382,0.00144,72750.0,72721.0,0.47596875]
[1773615286686,0.041232,72749.0,72726.0,0.47596875]
[1773615286877,0.38730995,72780.0,72720.0,0.00144]
[1773615286878,0.11341804,72759.0,72721.0,0.47596875]
[1773615287079,0.45174853,72758.0,72728.0,0.47596875]
[1773615287277,0.45174853,72758.0,72729.0,0.00144]
[1773615287583,0.45174853,72758.0,72730.0,0.00144]
[1773615287788,0.45174853,72758.0,72731.0,0.00144]
[1773615288082,0.041229,72753.0,72731.0,0.51864975]
[1773615288282,0.45174853,72758.0,72731.0,0.47740875]
[1773615288881,0.45174853,72758.0,72731.0,0.00144]
[1773615290281,0.00144,72759.0,72731.0,0.00144]
[1773615290282,0.04123,72751.0,72731.0,0.00144]
[1773615290484,0.45174853,72754.0,72731.0,0.00144]
[1773615290683,0.00144,72753.0,72731.0,0.00144]
[1773615290880,0.22577995,72752.0,72731.0,0.00144]
[1773615291191,0.22614052,72751.0,72731.0,0.00144]
[1773615291381,0.00144,72753.0,72731.0,0.00144]
[1773615291688,0.45318853,72753.0,72731.0,0.00144]
[1773615293188,0.00144,72753.0,72732.0,0.49344044]
[1773615293579,0.48241598,72753.0,72731.0,0.00144]
[1773615294087,0.10562796,72757.0,72731.0,0.00144]
[1773615294088,0.48097598,72759.0,72731.0,0.49488044]
[1773615294386,0.041228,72754.0,72734.0,0.49344044]
[1773615294687,0.48097598,72755.0,72731.0,0.00144]
[1773615294890,0.48097598,72755.0,72735.0,0.49344044]
[1773615295085,0.10426523,72762.0,72741.0,0.49344044]
[1773615295285,0.041224,72762.0,72742.0,0.49488044]
[1773615295588,0.041225,72761.0,72748.0,0.02474683]
[1773615296290,0.48097598,72762.0,72743.0,0.00144]
[1773615296479,0.041226,72759.0,72743.0,0.00144]
[1773615296681,0.48097598,72762.0,72743.0,0.00144]
[1773615296884,0.041225,72761.0,72743.0,0.00144]
[1773615297189,0.00144,72764.0,72743.0,0.00144]
[1773615297190,0.48097598,72766.0,72748.0,0.02474683]
[1773615297581,0.48097598,72766.0,72744.0,0.53467444]
[1773615297779,0.041222,72765.0,72745.0,0.49344044]
[1773615298090,0.4059458,72771.0,72743.0,0.042674]
[1773615298091,0.48097598,72761.0,72750.0,0.02474683]
[1773615298387,0.48097598,72761.0,72751.0,0.00144]
[1773615298584,0.4059458,72769.0,72751.0,0.00144]
[1773615298792,0.48097598,72770.0,72751.0,0.49488044]
[1773615298985,0.04122,72769.0,72751.0,0.49488044]
[1773615299181,0.041222,72765.0,72751.0,0.00144]
[1773615299381,0.48097598,72764.0,72742.0,0.00144]
[1773615299593,0.48097598,72756.0,72742.0,0.00144]
[1773615299780,0.52220098,72760.0,72742.0,0.00144]
[1773615300686,0.48097598,72759.0,72723.0,0.53468644]
[1773615300889,0.48097598,72759.0,72724.0,0.49488044]
[1773615301080,0.48097598,72759.0,72728.0,0.041242]
[1773615301280,0.48097598,72759.0,72724.0,0.49344044]
[1773615301591,0.041225,72760.0,72740.0,0.49344044]
[1773615301793,0.48097598,72767.0,72740.0,0.49344044]
[1773615301794,0.041224,72763.0,72742.0,0.49344044]
[1773615301984,0.48241598,72764.0,72742.0,0.49344044]
[1773615302690,0.041224,72762.0,72742.0,0.49344044]
[1773615303076,0.48097598,72776.0,72742.0,0.49344044]
[1773615303275,0.48097598,72769.0,72747.0,0.53467244]
[1773615303481,0.21065564,72768.0,72747.0,0.53467244]
[1773615303885,0.21065564,72768.0,72753.0,0.024747]
[1773615304088,0.21065564,72767.0,72753.0,0.024747]
[1773615304293,0.21065564,72766.0,72753.0,0.024747]
[1773615304493,0.21065564,72765.0,72753.0,0.024747]
[1773615304690,0.21065564,72764.0,72753.0,0.024747]
[1773615304884,0.21065564,72763.0,72752.0,0.042669]
[1773615305088,0.21065564,72762.0,72752.0,0.00144]
[1773615305289,0.21065564,72761.0,72752.0,0.00144]
[1773615305589,0.48097598,72780.0,72753.0,0.49344044]
[1773615305787,0.48097598,72789.0,72753.0,0.49344044]
[1773615306092,0.52218998,72779.0,72756.0,0.49344044]
[1773615306291,0.10631825,72789.0,72751.0,0.49344044]
[1773615306292,0.48097598,72781.0,72751.0,0.49344044]
[1773615306487,0.041219,72771.0,72752.0,0.00144]
[1773615306689,0.52219598,72770.0,72753.0,0.00144]
[1773615306880,0.48097598,72770.0,72754.0,0.00144]
[1773615307275,0.00144,72773.0,72751.0,0.00144]
[1773615307276,0.48097598,72764.0,72751.0,0.00144]
[1773615307488,0.48097598,72764.0,72739.0,0.49344044]
[1773615307489,0.48097598,72764.0,72750.0,0.00144]
[1773615307884,0.48097598,72770.0,72750.0,0.00144]
[1773615308079,0.48097598,72775.0,72751.0,0.49344044]
[1773615308285,0.48097598,72782.0,72761.0,0.041224]
[1773615308782,0.00144,72784.0,72762.0,0.49488044]
[1773615308982,0.00144,72784.0,72740.0,0.08511401]
[1773615308983,0.00144,72784.0,72763.0,0.49488044]
[1773615309189,0.48097598,72790.0,72768.0,0.53466044]
[1773615309393,0.48241598,72795.0,72769.0,0.49488044]
[1773615309595,0.48097598,72795.0,72770.0,0.00144]
[1773615309797,0.48097598,72790.0,72771.0,0.00144]
[1773615309993,0.52218198,72793.0,72772.0,0.041218]
[1773615310194,0.00144,72796.0,72773.0,0.49344044]
[1773615310388,0.00144,72799.0,72781.0,0.041212]
[1773615310586,0.041201,72802.0,72782.0,0.00144]
[1773615310888,0.48097598,72803.0,72782.0,0.00144]
[1773615311290,0.52217598,72803.0,72782.0,0.042652]
[1773615311494,0.001,72795.0,72782.0,0.00144]
[1773615312299,0.48097598,72799.0,72782.0,0.00144]
[1773615312987,0.041203,72798.0,72782.0,0.00144]
[1773615313191,0.48097598,72804.0,72782.0,0.00144]
[1773615313387,0.041203,72799.0,72782.0,0.00144]
[1773615313583,0.48097598,72804.0,72782.0,0.00144]
[1773615313988,0.48097598,72799.0,72782.0,0.00144]
[1773615314189,0.48097598,72796.0,72782.0,0.00144]
[1773615314391,0.52218198,72793.0,72782.0,0.00144]
[1773615314590,0.48097598,72793.0,72782.0,0.00144]
[1773615315798,0.041204,72797.0,72782.0,0.00144]
[1773615316092,0.4059458,72814.0,72782.0,0.00144]
[1773615316093,0.041202,72800.0,72782.0,0.00144]
[1773615316483,0.00144,72801.0,72782.0,0.00144]
[1773615316697,0.48241598,72803.0,72782.0,0.042652]
[1773615317192,0.00144,72803.0,72783.0,0.49344044]
[1773615317396,0.48097598,72802.0,72782.0,0.00144]
[1773615317594,0.20209474,72801.0,72782.0,0.00144]
[1773615317791,0.48097598,72801.0,72782.0,0.00144]
[1773615317994,0.48097598,72801.0,72781.0,0.00144]
[1773615320800,0.48097598,72801.0,72758.0,0.49344044]
[1773615320999,0.48097598,72801.0,72764.0,0.53466244]
[1773615321300,0.48097598,72786.0,72767.0,0.04122]
[1773615321601,0.00144,72789.0,72768.0,0.00144]
[1773615321803,0.041208,72791.0,72768.0,0.00144]
[1773615321804,0.00144,72792.0,72778.0,0.04945792]
[1773615321992,0.041209,72789.0,72778.0,0.04945792]
[1773615322905,0.53509735,72791.0,72778.0,0.04945792]
[1773615323197,0.49389035,72791.0,72778.0,0.04945792]
[1773615323403,0.041207,72792.0,72778.0,0.04945792]
[1773615323602,0.49389035,72795.0,72778.0,0.04945792]
[1773615323799,0.041204,72796.0,72777.0,0.53930004]
[1773615324008,0.041205,72796.0,72777.0,0.53930004]
[1773615324397,0.49533035,72800.0,72779.0,0.041214]
[1773615324596,0.49533035,72800.0,72786.0,0.04945792]
[1773615325296,0.041205,72795.0,72786.0,0.04945792]
[1773615325696,0.041204,72797.0,72784.0,0.00144]
[1773615327003,0.49389035,72799.0,72784.0,0.00144]
[1773615327207,0.53509335,72799.0,72784.0,0.00144]
[1773615327601,0.041204,72798.0,72784.0,0.00144]
[1773615327810,0.49389035,72804.0,72789.0,0.04945792]
[1773615327998,0.041202,72801.0,72789.0,0.04945792]
[1773615328494,0.53509235,72801.0,72789.0,0.04945792]
[1773615328700,0.00144,72805.0,72784.0,0.54073604]
[1773615328908,0.041201,72802.0,72784.0,0.54073604]
[1773615329209,0.49389035,72806.0,72784.0,0.49952504]
[1773615329399,0.041201,72802.0,72793.0,0.04945792]
[1773615329602,0.49389035,72806.0,72790.0,0.00144]
[1773615329798,0.49389035,72804.0,72790.0,0.00144]
[1773615330000,0.041201,72802.0,72790.0,0.00144]
[1773615330303,0.49389035,72802.0,72789.0,0.00144]
[1773615330504,0.49389035,72802.0,72790.0,0.00144]
[1773615332000,0.041203,72800.0,72790.0,0.00144]
[1773615332209,0.53509335,72800.0,72790.0,0.00144]
[1773615332513,0.041203,72799.0,72790.0,0.00144]
[1773615332699,0.49389035,72798.0,72789.0,0.00144]
[1773615333015,0.49389035,72805.0,72789.0,0.00144]
[1773615333400,0.49389035,72803.0,72789.0,0.00144]
[1773615333795,0.10877999,72806.0,72789.0,0.00144]
[1773615333796,0.041204,72798.0,72789.0,0.00144]
[1773615334202,0.041204,72797.0,72781.0,0.00144]
[1773615334509,0.49389035,72796.0,72781.0,0.00144]
[1773615334904,0.53509935,72789.0,72777.0,0.00144]
[1773615335206,0.49389035,72789.0,72777.0,0.00144]
[1773615335408,0.49389035,72789.0,72773.0,0.041217]
[1773615335609,0.49389035,72789.0,72767.0,0.49808504]
[1773615335610,0.49389035,72786.0,72754.0,0.49808504]
[1773615335800,0.041209,72789.0,72770.0,0.041219]
[1773615336007,0.041209,72789.0,72771.0,0.54074304]
[1773615336207,0.041209,72789.0,72772.0,0.00144]
[1773615336910,0.041207,72791.0,72772.0,0.00144]
[1773615337111,0.49389035,72790.0,72772.0,0.00144]
[1773615337325,0.49389035,72790.0,72772.0,0.042657]
[1773615337706,0.53510035,72787.0,72772.0,0.00144]
[1773615337914,0.49389035,72787.0,72772.0,0.00144]
[1773615338316,0.53510035,72787.0,72772.0,0.00144]
[1773615338614,0.10909307,72792.0,72761.0,0.49808504]
[1773615338615,0.49389035,72784.0,72773.0,0.00144]
[1773615338813,0.49389035,72784.0,72774.0,0.00144]
[1773615340014,0.10803991,72796.0,72774.0,0.49952504]
[1773615340215,0.49389035,72810.0,72791.0,0.041207]
[1773615340409,0.49389035,72810.0,72791.0,0.00144]
[1773615340713,0.49533035,72810.0,72795.0,0.041205]
[1773615340915,0.49389035,72815.0,72791.0,0.49952504]
[1773615341222,0.042632,72818.0,72798.0,0.49808504]
[1773615341412,0.041188,72825.0,72792.0,0.49808504]
[1773615341611,0.041188,72825.0,72791.0,0.00144]
[1773615341612,0.041188,72825.0,72806.0,0.53928304]
[1773615341807,0.041188,72825.0,72807.0,0.00144]
[1773615342012,0.041189,72823.0,72807.0,0.00144]
[1773615342218,0.49389035,72823.0,72807.0,0.00144]
[1773615343121,0.49389035,72829.0,72807.0,0.00144]
[1773615343314,0.49389035,72829.0,72808.0,0.00144]
[1773615343514,0.041193,72817.0,72808.0,0.00144]
[1773615343726,0.53508335,72817.0,72808.0,0.00144]
[1773615344025,0.49389035,72823.0,72804.0,0.00144]
[1773615344528,0.00144,72824.0,72804.0,0.00144]
[1773615344529,0.53508535,72813.0,72804.0,0.00144]
[1773615344718,0.49389035,72813.0,72804.0,0.00144]
[1773615345024,0.041194,72815.0,72804.0,0.00144]
[1773615345520,0.00144,72824.0,72804.0,0.00144]
[1773615345521,0.49389035,72823.0,72804.0,0.00144]
[1773615345725,0.00144,72824.0,72804.0,0.042639]
[1773615346224,0.49533035,72824.0,72804.0,0.00144]
[1773615346525,0.49533035,72824.0,72776.0,0.26670957]
[1773615346526,0.49389035,72823.0,72788.0,0.49808504]
[1773615346730,0.49389035,72813.0,72797.0,0.041204]
[1773615346912,0.49389035,72813.0,72798.0,0.00144]
[1773615347526,0.041192,72818.0,72799.0,0.53928704]
[1773615347726,0.041193,72817.0,72799.0,0.53928704]
[1773615347929,0.041193,72817.0,72799.0,0.041202]
[1773615348130,0.53508335,72817.0,72799.0,0.041202]
[1773615348522,0.49389035,72817.0,72798.0,0.00144]
[1773615348726,0.49389035,72817.0,72798.0,0.49952504]
[1773615348921,0.49533035,72822.0,72798.0,0.49952504]
[1773615349236,0.49389035,72822.0,72799.0,0.49808504]
[1773615349723,0.49389035,72822.0,72807.0,0.041198]
[1773615349920,0.49389035,72822.0,72808.0,0.00144]
[1773615350521,0.49389035,72822.0,72792.0,0.49808504]
[1773615350732,0.49389035,72817.0,72800.0,0.041202]
[1773615350933,0.49389035,72817.0,72801.0,0.042641]
[1773615351131,0.49389035,72817.0,72802.0,0.00144]
[1773615351731,0.53508335,72817.0,72802.0,0.00144]
[1773615351932,0.041194,72816.0,72802.0,0.00144]
[1773615352428,0.493157,72816.0,72802.0,0.00144]
[1773615353518,0.52887705,72817.0,72802.0,0.00144]
[1773615354629,0.041194,72815.0,72802.0,0.00144]
[1773615354831,0.48768405,72810.0,72795.0,0.041205]
[1773615355130,0.48768405,72820.0,72798.0,0.041203]
[1773615355336,0.00144,72822.0,72799.0,0.00144]
[1773615355527,0.48768405,72808.0,72785.0,0.48054358]
[1773615355831,0.48768405,72808.0,72790.0,0.041207]
[1773615356035,0.48768405,72805.0,72791.0,0.00144]
[1773615356524,0.48768405,72802.0,72780.0,0.48054358]
[1773615356721,0.48768405,72800.0,72785.0,0.04121]
[1773615357132,0.48768405,72798.0,72783.0,0.00144]
[1773615357328,0.48768405,72798.0,72782.0,0.041212]
[1773615357632,0.041206,72794.0,72780.0,0.00144]
[1773615357939,0.48768405,72793.0,72781.0,0.00144]
[1773615358138,0.48768405,72793.0,72782.0,0.00144]
[1773615358435,0.52889005,72793.0,72782.0,0.00144]
[1773615358638,0.48768405,72791.0,72783.0,0.00144]
[1773615361127,0.48768405,72786.0,72763.0,0.48054358]
[1773615361323,0.52889405,72786.0,72770.0,0.041219]
[1773615361939,0.48768405,72786.0,72771.0,0.00144]
[1773615362433,0.48768405,72786.0,72759.0,0.48054358]
[1773615362636,0.04122,72769.0,72752.0,0.041229]
[1773615362835,0.48768405,72770.0,72749.0,0.041231]
[1773615363133,0.041208,72790.0,72748.0,0.041231]
[1773615363134,0.041222,72766.0,72748.0,0.041231]
[1773615363334,0.041222,72766.0,72743.0,0.48054358]
[1773615363335,0.041222,72766.0,72749.0,0.041231]
[1773615363632,0.041222,72766.0,72743.0,0.48054358]
[1773615363633,0.48768405,72761.0,72750.0,0.00144]
[1773615363942,0.041225,72760.0,72751.0,0.00144]
[1773615364250,0.041225,72760.0,72743.0,0.041234]
[1773615364251,0.52891005,72758.0,72746.0,0.00144]
[1773615364431,0.52891005,72758.0,72747.0,0.00144]
[1773615364827,0.48768405,72758.0,72747.0,0.00144]
[1773615365042,0.04123,72751.0,72734.0,0.041239]
[1773615365228,0.041226,72759.0,72736.0,0.48054358]
[1773615365430,0.041226,72758.0,72740.0,0.041236]
[1773615365740,0.041227,72757.0,72741.0,0.00144]
[1773615365938,0.041228,72755.0,72741.0,0.00144]
[1773615366743,0.041227,72757.0,72741.0,0.00144]
[1773615368025,0.041227,72756.0,72741.0,0.00144]
[1773615368337,0.52891305,72754.0,72741.0,0.00144]
[1773615368737,0.041229,72753.0,72741.0,0.00144]
[1773615369036,0.52891305,72753.0,72741.0,0.00144]
[1773615369536,0.48768405,72753.0,72741.0,0.00144]
[1773615369740,0.52891305,72753.0,72742.0,0.00144]
[1773615370336,0.04123,72751.0,72736.0,0.00144]
[1773615370531,0.48768405,72758.0,72736.0,0.00144]
[1773615370732,0.52891405,72752.0,72736.0,0.042678]
[1773615371630,0.48768405,72747.0,72737.0,0.00144]
[1773615371835,0.041231,72750.0,72737.0,0.00144]
[1773615372036,0.041233,72745.0,72735.0,0.00144]
[1773615373038,0.041235,72743.0,72735.0,0.00144]
[1773615373644,0.52891905,72743.0,72735.0,0.00144]
[1773615374137,0.48768405,72742.0,72727.0,0.00144]
[1773615374344,0.041233,72745.0,72727.0,0.00144]
[1773615374639,0.041234,72744.0,72727.0,0.042683]
[1773615374834,0.52891805,72744.0,72727.0,0.042683]
[1773615375035,0.48768405,72744.0,72727.0,0.00144]
[1773615375235,0.48768405,72738.0,72728.0,0.00144]
[1773615375436,0.48768405,72738.0,72729.0,0.00144]
[1773615375637,0.13714647,72756.0,72728.0,0.00144]
[1773615375638,0.48768405,72747.0,72728.0,0.00144]
[1773615375943,0.13714647,72756.0,72730.0,0.48054358]
[1773615375944,0.04123,72752.0,72730.0,0.48054358]
[1773615376143,0.48768405,72754.0,72731.0,0.48198358]
[1773615376346,0.48768405,72750.0,72732.0,0.00144]
[1773615376646,0.3026,72776.0,72734.0,0.48054358]
[1773615376647,0.48768405,72761.0,72734.0,0.48054358]
[1773615376947,0.48912405,72761.0,72740.0,0.041236]
[1773615377246,0.48912405,72761.0,72741.0,0.00144]
[1773615377947,0.48768405,72760.0,72742.0,0.00144]
[1773615378635,0.48768405,72753.0,72742.0,0.00144]
[1773615378831,0.48768405,72757.0,72742.0,0.00144]
[1773615379937,0.041227,72756.0,72742.0,0.00144]
[1773615380141,0.52891105,72756.0,72742.0,0.00144]
[1773615381844,0.041228,72755.0,72742.0,0.00144]
[1773615382744,0.50907389,72753.0,72743.0,0.00144]
[1773615383047,0.041232,72748.0,72733.0,0.04124]
[1773615383249,0.50907689,72748.0,72734.0,0.00144]
[1773615383743,0.00144,72761.0,72734.0,0.00144]
[1773615383944,0.041227,72757.0,72742.0,0.041235]
[1773615384152,0.041227,72757.0,72743.0,0.00144]
[1773615384351,0.46784489,72764.0,72743.0,0.00144]
[1773615384853,0.50907389,72752.0,72744.0,0.00144]
[1773615385148,0.46784489,72752.0,72745.0,0.00144]
[1773615385351,0.46784489,72752.0,72746.0,0.00144]
[1773615385553,0.46784489,72757.0,72747.0,0.00144]
[1773615385950,0.3026,72776.0,72747.0,0.00144]
[1773615385951,0.46784489,72762.0,72747.0,0.00144]
[1773615386340,0.46784489,72766.0,72747.0,0.45438913]
[1773615386539,0.46784489,72766.0,72754.0,0.041228]
[1773615386752,0.46784489,72766.0,72755.0,0.00144]
[1773615386949,0.041221,72768.0,72755.0,0.00144]
[1773615387145,0.13501993,72771.0,72755.0,0.00144]
[1773615387354,0.46784489,72761.0,72755.0,0.00144]
[1773615387753,0.46784489,72758.0,72753.0,0.00144]
[1773615387953,0.46784489,72758.0,72743.0,0.041234]
[1773615387954,0.041227,72757.0,72744.0,0.00144]
[1773615388143,0.041228,72756.0,72745.0,0.00144]
[1773615388340,0.50907289,72756.0,72745.0,0.00144]
[1773615388552,0.46784489,72756.0,72746.0,0.00144]
[1773615388856,0.46784489,72765.0,72746.0,0.00144]
[1773615389055,0.50906989,72760.0,72746.0,0.042672]
[1773615389553,0.041226,72759.0,72746.0,0.00144]
[1773615389857,0.46784489,72765.0,72747.0,0.00144]
[1773615390153,0.041226,72759.0,72747.0,0.00144]
[1773615390352,0.041225,72760.0,72747.0,0.00144]
[1773615390654,0.041225,72761.0,72747.0,0.00144]
[1773615390853,0.46784489,72764.0,72747.0,0.00144]
[1773615391050,0.46784489,72757.0,72747.0,0.00144]
[1773615393759,0.041224,72762.0,72748.0,0.041232]
[1773615394052,0.041225,72761.0,72747.0,0.00144]
[1773615394271,0.50906989,72761.0,72747.0,0.00144]
[1773615394449,0.041226,72759.0,72747.0,0.00144]
[1773615395258,0.50907089,72759.0,72747.0,0.00144]
[1773615395853,0.46784489,72759.0,72748.0,0.00144]
[1773615396048,0.46784489,72752.0,72730.0,0.45294913]
[1773615396249,0.46784489,72752.0,72740.0,0.041236]
[1773615396458,0.46784489,72752.0,72741.0,0.00144]
[1773615396858,0.50907389,72752.0,72741.0,0.00144]
[1773615397058,0.46784489,72750.0,72742.0,0.00144]
[1773615397255,0.46784489,72750.0,72743.0,0.00144]
[1773615397455,0.50907589,72750.0,72744.0,0.00144]
[1773615397654,0.50907589,72750.0,72745.0,0.00144]
[1773615398966,0.50907589,72749.0,72738.0,0.00144]
[1773615399162,0.041229,72753.0,72739.0,0.00144]
[1773615399354,0.46784489,72752.0,72739.0,0.00144]
[1773615399557,0.46784489,72752.0,72723.0,0.45294913]
[1773615399757,0.46784489,72748.0,72724.0,0.29256949]
[1773615399956,0.00144,72760.0,72724.0,0.29256949]
[1773615399957,0.04123,72752.0,72733.0,0.45294913]
[1773615400158,0.04123,72752.0,72734.0,0.00144]
[1773615400460,0.04123,72751.0,72734.0,0.00144]
[1773615401063,0.041227,72756.0,72735.0,0.45294913]
[1773615401258,0.59626016,72779.0,72735.0,0.45294913]
[1773615401259,0.041222,72765.0,72735.0,0.45294913]
[1773615401460,0.041223,72764.0,72734.0,0.00144]
[1773615401665,0.46784489,72762.0,72736.0,0.45294913]
[1773615401852,0.041225,72760.0,72738.0,0.45294913]
[1773615402258,0.041226,72758.0,72745.0,0.041233]
[1773615402458,0.041226,72758.0,72746.0,0.00144]
[1773615402656,0.46784489,72756.0,72730.0,0.08497756]
[1773615402860,0.46784489,72760.0,72737.0,0.45294913]
[1773615404066,0.46784489,72758.0,72745.0,0.041233]
[1773615404366,0.46784489,72758.0,72746.0,0.00144]
[1773615404769,0.041227,72757.0,72746.0,0.00144]
[1773615405066,0.50907189,72757.0,72746.0,0.00144]
[1773615406264,0.46784489,72754.0,72742.0,0.041235]
[1773615406470,0.46784489,72754.0,72727.0,0.75558913]
[1773615406665,0.46784489,72754.0,72729.0,0.45294913]
[1773615406870,0.46784489,72754.0,72728.0,0.28867477]
[1773615406871,0.46784489,72754.0,72743.0,0.041234]
[1773615407169,0.041227,72757.0,72744.0,0.042674]
[1773615407369,0.50907189,72757.0,72745.0,0.00144]
[1773615407565,0.46784489,72767.0,72746.0,0.00144]
[1773615407775,0.46784489,72767.0,72728.0,0.45294913]
[1773615407776,0.46784489,72749.0,72747.0,0.00144]
[1773615408068,0.46784489,72749.0,72748.0,0.00144]
[1773615408270,0.46784489,72749.0,72747.0,0.00144]
[1773615408468,0.46784489,72747.0,72746.0,0.00144]
[1773615408678,0.041233,72746.0,72726.0,0.45294913]
[1773615408867,0.46784489,72747.0,72727.0,0.28871879]
[1773615409066,0.041233,72746.0,72728.0,0.2657869]
[1773615409370,0.46784489,72747.0,72729.0,0.26582477]
[1773615409569,0.46784489,72747.0,72735.0,0.041239]
[1773615409966,0.46784489,72747.0,72736.0,0.00144]
[1773615410270,0.46784489,72747.0,72721.0,0.75558913]
[1773615410468,0.041234,72744.0,72731.0,0.041241]
[1773615410675,0.041235,72743.0,72732.0,0.00144]
[1773615411468,0.041234,72744.0,72732.0,0.00144]
[1773615411675,0.46784489,72744.0,72732.0,0.00144]
[1773615412067,0.46784489,72744.0,72732.0,0.00244]
[1773615412471,0.041235,72742.0,72732.0,0.00244]
[1773615412671,0.46784489,72744.0,72732.0,0.00244]
[1773615412980,0.13325146,72757.0,72732.0,0.00244]
[1773615412981,0.041235,72742.0,72732.0,0.00244]
[1773615413277,0.5299247,72742.0,72732.0,0.00244]
[1773615413962,0.041236,72741.0,72732.0,0.00244]
[1773615414168,0.4886897,72742.0,72732.0,0.00244]
[1773615414369,0.4886897,72742.0,72732.0,0.00144]
[1773615414568,0.4886897,72742.0,72732.0,0.00244]
[1773615414877,0.4886897,72753.0,72732.0,0.00244]
[1773615415776,0.041235,72742.0,72732.0,0.00244]
[1773615416080,0.041235,72742.0,72721.0,0.78137671]
[1773615416081,0.4886897,72742.0,72721.0,0.47873671]
[1773615416275,0.041236,72740.0,72727.0,0.041243]
[1773615416473,0.041238,72738.0,72724.0,0.041245]
[1773615416678,0.4886897,72736.0,72725.0,0.042684]
[1773615416888,0.4886897,72736.0,72726.0,0.00144]
[1773615417591,0.4886897,72731.0,72717.0,0.00015812]
[1773615417788,0.4886897,72731.0,72718.0,0.00144]
[1773615417983,0.5299317,72731.0,72726.0,0.001]
[1773615418185,0.5299317,72730.0,72727.0,0.00144]
[1773615418491,0.4886897,72731.0,72721.0,0.00144]
[1773615418884,0.5299327,72729.0,72721.0,0.00144]
[1773615419284,0.041241,72731.0,72721.0,0.00144]
[1773615419589,0.4886897,72726.0,72717.0,0.00015812]
[1773615419790,0.14003705,72743.0,72718.0,0.00144]
[1773615419991,0.041241,72731.0,72718.0,0.00144]
[1773615420294,0.041242,72730.0,72718.0,0.00144]
[1773615420790,0.5299317,72730.0,72718.0,0.00144]
[1773615421188,0.041233,72746.0,72718.0,0.00144]
[1773615421391,0.4886897,72756.0,72735.0,0.47873671]
[1773615421594,0.4886897,72756.0,72744.0,0.041234]
[1773615421785,0.4886897,72756.0,72745.0,0.00144]
[1773615421984,0.041228,72755.0,72746.0,0.00144]
[1773615422290,0.5299197,72751.0,72747.0,0.00144]
[1773615422491,0.5299197,72751.0,72748.0,0.00144]
[1773615422800,0.00144,72763.0,72747.0,0.00144]
[1773615422801,0.041228,72754.0,72747.0,0.00144]
[1773615422988,0.00144,72763.0,72735.0,0.041238]
[1773615423188,0.4886897,72762.0,72736.0,0.00144]
[1773615423396,0.4886897,72752.0,72739.0,0.041236]
[1773615423893,0.4886897,72752.0,72737.0,0.041238]
[1773615424096,0.4886897,72752.0,72738.0,0.041237]
[1773615424289,0.5299197,72752.0,72738.0,0.041237]
[1773615424690,0.4911297,72763.0,72743.0,0.041234]
[1773615424894,0.041227,72756.0,72741.0,0.51997171]
[1773615425094,0.041227,72756.0,72742.0,0.041234]
[1773615426291,0.041227,72756.0,72743.0,0.00144]
[1773615427999,0.041224,72762.0,72743.0,0.48017671]
[1773615428191,0.4886897,72768.0,72747.0,0.041232]
[1773615428192,0.041225,72760.0,72747.0,0.041232]
[1773615428397,0.4886897,72762.0,72745.0,0.041233]
[1773615428589,0.4886897,72761.0,72746.0,0.00144]
[1773615428788,0.041217,72774.0,72747.0,0.00144]
[1773615428789,0.4886897,72753.0,72747.0,0.00144]
[1773615429001,0.4886897,72753.0,72748.0,0.00144]
[1773615429303,0.041229,72754.0,72749.0,0.00144]
[1773615429604,0.041229,72754.0,72750.0,0.00144]
[1773615429803,0.041227,72756.0,72751.0,0.00144]
[1773615429999,0.041227,72756.0,72752.0,0.00144]
[1773615430201,0.041227,72756.0,72751.0,0.00144]
[1773615431003,0.041226,72758.0,72751.0,0.00144]
[1773615431396,0.4886897,72760.0,72738.0,0.47873671]
[1773615431596,0.041227,72756.0,72743.0,0.041234]
[1773615433600,0.041227,72756.0,72739.0,0.48017671]
[1773615434303,0.4886897,72767.0,72739.0,0.48017671]
[1773615434609,0.4886897,72767.0,72747.0,0.47873671]
[1773615434801,0.4886897,72767.0,72748.0,0.00144]
[1773615434999,0.041224,72763.0,72750.0,0.04123]
[1773615435197,0.041224,72762.0,72748.0,0.042671]
[1773615435597,0.041224,72762.0,72750.0,0.04123]
[1773615435998,0.041224,72762.0,72751.0,0.00144]